bitfinex-derivatives/quotes_BNBF0:USTF0_20250413
["timestamp","ask_amount","ask_price","bid_price","bid_amount"]
[1744502932816,0.29150123,597.56,596.67,5.60819365]
[1744502932817,0.3078858,597.53,596.67,5.60819365]
[1744502933015,0.3078858,597.55,596.67,5.60819365]
[1744502933220,0.3078858,597.52,596.67,5.60819365]
[1744502933418,0.29150123,597.56,596.67,5.60819365]
[1744502933621,0.3078831,597.55,596.67,5.60819365]
[1744502935023,1.27119983,597.58,596.67,5.60819365]
[1744502935221,0.30788403,597.57,596.67,5.60819365]
[1744502935418,0.29150611,597.54,596.67,5.60819365]
[1744502935622,0.30788403,597.53,596.67,5.60819365]
[1744502936725,0.30788068,597.52,596.67,5.60819365]
[1744502937023,0.30788068,597.51,596.67,5.60819365]
[1744502937224,0.30788068,597.5,596.67,5.60819365]
[1744502937422,0.30788068,597.53,596.67,5.60819365]
[1744502937623,0.30788068,597.52,596.67,5.60819365]
[1744502937823,0.30788068,597.53,596.67,5.60819365]
[1744502938225,1.27119983,597.57,596.67,5.60819365]
[1744502938423,0.29150856,597.52,596.67,5.60819365]
[1744502938622,0.30788353,597.51,596.67,5.60819365]
[1744502939919,0.307883,597.5,596.67,5.60819365]
[1744502940121,0.307883,597.51,596.67,5.60819365]
[1744502940424,0.307883,597.5,596.67,5.60819365]
[1744502940624,0.307883,597.51,596.67,5.60819365]
[1744502941330,0.307883,597.55,596.67,5.60819365]
[1744502941629,0.29150611,597.5,596.67,5.60819365]
[1744502941830,0.307883,597.49,596.67,5.60819365]
[1744502944225,0.307883,597.54,596.67,5.60819365]
[1744502944429,1.27119983,597.55,596.67,5.60819365]
[1744502944627,0.30788353,597.54,596.67,5.60819365]
[1744502944932,1.57908336,597.54,596.67,5.60819365]
[1744502945133,0.30788353,597.53,596.67,5.60819365]
[1744502945329,0.59939209,597.53,596.67,5.60819365]
[1744502945635,0.30788353,597.52,596.67,5.60819365]
[1744502950332,0.30788353,597.68,596.67,5.60819365]
[1744502950537,1.27119983,597.69,596.67,5.60819365]
[1744502950837,0.30783302,597.68,596.67,5.60819365]
[1744502951034,0.30783302,597.72,596.67,5.60819365]
[1744502951239,0.29146339,597.67,596.67,5.60819365]
[1744502951540,0.30783302,597.66,596.67,5.60819365]
[1744502953336,0.30783302,597.84,596.67,5.60819365]
[1744502953642,0.29147071,597.65,596.67,5.60819365]
[1744502953942,0.30783302,597.64,596.67,5.60819365]
[1744502954136,0.30783302,597.84,596.67,5.60819365]
[1744502954340,0.30784153,597.83,596.67,5.60819365]
[1744502954537,0.30784153,597.84,596.67,5.60819365]
[1744502954837,0.30784153,597.83,596.67,5.60819365]
[1744502955043,0.29144874,597.83,596.67,5.60819365]
[1744502955243,0.30784153,597.82,596.67,5.60819365]
[1744502959051,1.27119983,598.04,596.67,5.60819365]
[1744502959251,0.30785258,597.84,596.67,5.60819365]
[1744502959445,0.29146583,597.81,596.67,5.60819365]
[1744502959649,0.30785258,597.8,596.67,5.60819365]
[1744502960249,0.30785258,597.79,596.67,5.60819365]
[1744502960447,0.30785258,597.78,596.67,5.60819365]
[1744502960652,0.30785258,597.77,596.67,5.60819365]
[1744502960949,0.30785258,597.76,596.67,5.60819365]
[1744502961153,0.30785258,597.8,596.67,5.60819365]
[1744502961354,0.30785258,597.79,596.67,5.60819365]
[1744502961555,0.30785258,597.78,596.67,5.60819365]
[1744502961756,0.30785258,597.8,596.67,5.60819365]
[1744502961955,0.30785258,597.79,596.67,5.60819365]
[1744502962159,0.30785258,597.78,596.67,5.60819365]
[1744502962354,0.30785258,597.84,596.67,5.60819365]
[1744502962559,0.30785258,597.83,596.67,5.60819365]
[1744502962859,1.27119983,597.79,596.67,5.60819365]
[1744502963059,0.30785258,597.78,596.67,5.60819365]
[1744502963361,0.59932329,597.78,596.67,5.60819365]
[1744502963559,0.30785258,597.77,596.67,5.60819365]
[1744502963858,0.29147071,597.78,596.67,5.60819365]
[1744502964056,0.3078461,597.77,596.67,5.60819365]
[1744502965261,0.3078461,597.78,596.67,5.60819365]
[1744502965461,0.29147193,597.76,596.67,5.60819365]
[1744502965659,0.3078461,597.75,596.67,5.60819365]
[1744502967657,0.3078461,597.74,596.67,5.60819365]
[1744502967862,0.3078461,597.75,596.67,5.60819365]
[1744502968261,0.3078461,597.84,596.67,5.60819365]
[1744502968464,0.29146339,597.74,596.67,5.60819365]
[1744502968658,0.3078461,597.73,596.67,5.60819365]
[1744502968864,0.3078461,597.84,596.67,5.60819365]
[1744502969059,0.3078461,597.83,596.67,5.60819365]
[1744502969264,0.3078461,597.82,596.67,5.60819365]
[1744502969466,0.3078461,597.81,596.67,5.60819365]
[1744502969668,0.3078461,597.8,596.67,5.60819365]
[1744502969963,0.3078461,597.79,596.67,5.60819365]
[1744502970164,0.3078461,597.78,596.67,5.60819365]
[1744502970362,0.29146339,597.8,596.67,5.60819365]
[1744502970563,1.27119983,597.77,596.67,5.60819365]
[1744502970766,0.3078478,597.76,596.67,5.60819365]
[1744502971069,0.3078478,597.75,596.67,5.60819365]
[1744502971267,0.3078478,597.74,596.67,5.60819365]
[1744502971462,0.3078478,597.73,596.67,5.60819365]
[1744502971769,0.3078478,597.72,596.67,5.60819365]
[1744502971968,0.3078478,597.71,596.67,5.60819365]
[1744502972169,0.3078478,597.7,596.67,5.60819365]
[1744502972367,0.3078478,597.69,596.67,5.60819365]
[1744502972569,0.3078478,597.68,596.67,5.60819365]
[1744502972765,0.3078478,597.67,596.67,5.60819365]
[1744502973069,0.3078478,597.66,596.67,5.60819365]
[1744502973264,0.3078478,597.68,596.67,5.60819365]
[1744502973469,1.27119983,597.69,596.67,5.60819365]
[1744502973671,0.30784954,597.68,596.67,5.60819365]
[1744502973973,0.30784954,597.67,596.67,5.60819365]
[1744502974173,0.30784954,597.66,596.67,5.60819365]
[1744502974372,0.30784954,597.68,596.67,5.60819365]
[1744502974672,0.30784954,597.67,596.67,5.60819365]
[1744502974970,0.30784954,597.66,596.67,5.60819365]
[1744502975171,0.30784954,597.65,596.67,5.60819365]
[1744502975366,0.30784954,597.64,596.67,5.60819365]
[1744502975570,0.30784954,597.63,596.67,5.60819365]
[1744502975770,0.30784954,597.62,596.67,5.60819365]
[1744502975972,0.30784954,597.64,596.67,5.60819365]
[1744502976173,0.30784954,597.63,596.67,5.60819365]
[1744502976373,0.30784954,597.62,596.67,5.60819365]
[1744502976569,0.30784954,597.64,596.67,5.60819365]
[1744502976767,0.29148536,597.65,596.67,5.60819365]
[1744502976967,0.30785136,597.64,596.67,5.60819365]
[1744502977168,0.30785136,597.63,596.67,5.60819365]
[1744502977374,0.29148536,597.64,596.67,5.60819365]
[1744502977573,0.30785136,597.63,596.67,5.60819365]
[1744502981574,0.29148536,597.64,596.67,5.60819365]
[1744502981777,0.30783716,597.63,596.67,5.60819365]
[1744502983275,0.30783716,597.65,596.67,5.60819365]
[1744502983476,0.29146705,597.62,596.67,5.60819365]
[1744502983675,0.30783716,597.61,596.67,5.60819365]
[1744502984678,0.29146705,597.62,596.67,5.60819365]
[1744502984974,0.30783249,597.61,596.67,5.60819365]
[1744502989381,0.30783249,597.6,596.67,5.60819365]
[1744502989583,0.29146339,597.6,596.67,5.60819365]
[1744502989877,0.30783249,597.59,596.67,5.60819365]
[1744502995282,0.29146217,597.58,596.67,5.60819365]
[1744502995482,0.30783249,597.57,596.67,5.60819365]
[1744502995683,0.30783249,597.57,596.67,6.45219365]
[1744502996287,0.30783249,597.57,596.67,7.09519365]
[1744502999891,0.29146217,597.58,596.67,7.09519365]
[1744502999892,0.30778908,597.56,596.67,7.09519365]
[1744503000092,0.29146217,597.58,596.67,7.09519365]
[1744503000292,0.30778341,597.57,596.67,7.09519365]
[1744503001194,0.30778341,597.84,596.67,7.09519365]
[1744503001488,0.29144996,597.6,596.67,7.09519365]
[1744503001692,0.30778341,597.59,596.67,7.09519365]
[1744503001892,0.30778341,597.84,596.67,7.09519365]
[1744503002092,0.30778341,597.83,596.67,7.09519365]
[1744503002292,0.30778341,597.84,596.67,7.09519365]
[1744503002487,0.30778341,597.83,596.67,7.09519365]
[1744503002685,0.30778341,597.84,596.67,7.09519365]
[1744503002886,0.29141702,597.82,596.67,7.09519365]
[1744503003088,0.30778341,597.81,596.67,7.09519365]
[1744503004295,0.33453207,597.85,596.67,7.09519365]
[1744503004593,0.29139871,597.8,596.67,7.09519365]
[1744503004796,0.30773957,597.79,596.67,7.09519365]
[1744503010393,0.30773957,598.02,596.67,7.09519365]
[1744503010594,0.29140115,597.78,596.67,7.09519365]
[1744503010791,0.30773957,598.01,596.67,7.09519365]
[1744503010994,0.30773957,598.0,596.67,7.09519365]
[1744503011195,0.30773957,597.99,596.67,7.09519365]
[1744503011395,0.30773957,597.98,596.67,7.09519365]
[1744503011595,0.2913731,597.99,596.67,7.09519365]
[1744503011897,0.30773957,597.98,596.68,0.29339582]
[1744503012093,0.30773957,597.97,596.7,0.3351768]
[1744503012290,0.30773957,597.96,596.71,0.29339582]
[1744503012494,0.30773957,597.95,596.73,0.33515995]
[1744503012692,0.30773957,597.94,596.73,0.33515995]
[1744503012893,0.30773957,597.93,596.73,0.33515995]
[1744503013099,0.30773957,597.92,596.73,0.33515995]
[1744503013301,0.30773957,597.91,596.73,0.33515995]
[1744503013501,0.30773957,597.9,596.73,0.33515995]
[1744503013699,0.30773957,597.89,596.73,0.33515995]
[1744503013898,0.30773957,597.9,596.73,0.33515995]
[1744503014099,0.30773957,597.89,596.73,0.33515995]
[1744503014399,0.30773957,597.9,596.73,0.33515995]
[1744503014596,0.30773957,597.89,596.73,0.33515995]
[1744503014799,0.30773957,597.88,596.74,0.918]
[1744503015000,0.30773957,597.9,596.74,0.918]
[1744503015201,0.30773957,597.89,596.75,0.818]
[1744503015400,0.30773957,597.9,596.77,0.33513749]
[1744503015598,0.30773957,597.89,596.77,0.33513749]
[1744503015800,0.30773957,597.88,596.77,0.33513749]
[1744503015999,0.30773957,597.87,596.77,0.33513749]
[1744503016194,0.30773957,598.0,596.77,0.63413749]
[1744503016395,0.29138773,597.87,596.77,0.63413749]
[1744503016695,0.30773957,597.86,596.77,0.63413749]
[1744503016901,0.30773957,598.0,596.77,0.63413749]
[1744503017101,0.30773957,597.99,596.77,0.63413749]
[1744503017399,0.30773957,597.98,596.77,0.63413749]
[1744503017596,0.30773957,597.97,596.77,0.63413749]
[1744503017800,0.30773957,597.96,596.77,0.63413749]
[1744503017994,0.30773957,597.95,596.77,0.63413749]
[1744503018197,0.30773957,597.94,596.77,0.63413749]
[1744503018395,0.30773957,597.93,596.77,0.63413749]
[1744503018600,0.30773957,597.92,596.77,0.63413749]
[1744503018801,0.30773957,597.91,596.77,1.24413749]
[1744503019101,0.30773748,597.9,596.77,1.98913749]
[1744503019303,0.30773748,597.89,596.77,1.98913749]
[1744503019503,0.30773748,597.88,596.77,2.67013749]
[1744503019705,0.30773748,597.89,596.77,2.67013749]
[1744503019904,0.30773748,597.88,596.77,2.67013749]
[1744503020105,0.30773748,597.89,596.77,2.67013749]
[1744503020607,0.29137798,597.9,596.77,2.67013749]
[1744503020806,0.30777503,597.89,596.77,2.67013749]
[1744503022207,1.27119983,598.0,596.77,2.67013749]
[1744503022408,0.29140603,597.88,596.77,2.67013749]
[1744503022607,0.30777604,597.87,596.77,2.67013749]
[1744503023002,0.30777604,598.01,596.77,2.67013749]
[1744503023207,0.30777604,598.0,596.77,2.67013749]
[1744503023506,0.30777604,597.99,596.77,2.67013749]
[1744503024008,0.30777604,597.98,596.77,2.67013749]
[1744503024207,0.30777604,597.97,596.77,2.67013749]
[1744503024408,0.30777604,597.96,596.77,2.67013749]
[1744503024606,0.30777604,597.95,596.77,2.67013749]
[1744503024803,0.30777604,597.94,596.77,2.67013749]
[1744503025009,0.30777604,597.93,596.77,2.67013749]
[1744503025212,0.30777604,597.99,596.77,2.67013749]
[1744503025408,0.30777604,597.98,596.77,2.67013749]
[1744503025607,0.30777604,597.97,596.77,2.67013749]
[1744503025808,1.27119983,598.01,596.77,2.67013749]
[1744503025809,0.30777604,597.96,596.77,2.67013749]
[1744503026108,0.30777604,597.95,596.77,2.67013749]
[1744503026309,0.30777604,597.94,596.77,2.67013749]
[1744503026511,0.30777604,597.93,596.77,2.67013749]
[1744503026709,0.30777604,597.94,596.77,2.67013749]
[1744503026902,0.30777604,597.93,596.77,2.67013749]
[1744503027105,0.30777604,597.94,596.77,2.67013749]
[1744503027309,0.30777604,597.93,596.77,2.67013749]
[1744503027510,0.30777604,597.92,596.77,2.67013749]
[1744503027706,0.30777604,597.94,596.77,2.67013749]
[1744503027906,0.30777604,597.93,596.77,2.67013749]
[1744503028106,0.30777604,597.92,596.77,2.67013749]
[1744503028302,0.30777604,597.98,596.77,2.67013749]
[1744503028508,0.29139993,597.92,596.77,2.67013749]
[1744503028705,0.30777604,597.91,596.77,2.67013749]
[1744503029810,0.30777604,597.9,596.77,2.67013749]
[1744503030004,0.30777604,597.89,596.77,2.67013749]
[1744503030205,0.30777604,597.88,596.77,2.67013749]
[1744503030508,0.30777604,597.87,596.77,2.67013749]
[1744503030707,0.30777604,597.86,596.77,2.67013749]
[1744503030912,0.30777604,597.85,596.77,2.67013749]
[1744503031111,0.30777604,597.84,596.77,2.67013749]
[1744503031304,0.30777604,597.83,596.77,2.67013749]
[1744503031506,0.30777604,597.82,596.77,2.67013749]
[1744503031809,0.30777604,597.81,596.77,2.67013749]
[1744503032010,0.30777604,597.8,596.77,2.67013749]
[1744503032310,0.30777604,597.79,596.77,2.67013749]
[1744503032510,0.30777604,597.91,596.77,2.67013749]
[1744503032806,0.30777604,597.9,596.77,2.67013749]
[1744503033006,0.30777604,597.89,596.77,2.67013749]
[1744503033213,1.27119983,597.83,596.77,2.67013749]
[1744503033405,0.30777604,597.82,596.77,2.67013749]
[1744503033609,0.30777604,597.81,596.77,2.67013749]
[1744503033809,0.30777604,597.82,596.77,2.67013749]
[1744503034512,0.29141457,597.81,596.77,2.67013749]
[1744503034812,0.30777604,597.8,596.77,2.67013749]
[1744503036709,0.29141457,597.81,596.77,2.67013749]
[1744503036913,0.30775753,597.8,596.77,2.67013749]
[1744503037309,0.30775753,597.87,596.77,2.67013749]
[1744503037513,0.29141702,597.79,596.77,2.67013749]
[1744503037710,0.30775753,597.78,596.77,2.67013749]
[1744503037914,0.30775753,597.87,596.77,3.38813749]
[1744503038111,0.30775753,597.86,596.77,3.38813749]
[1744503038313,0.30775753,597.85,596.77,3.38813749]
[1744503038514,0.30776558,597.84,596.77,3.38813749]
[1744503038710,0.30776558,597.85,596.77,3.38813749]
[1744503038910,0.30776558,597.84,596.77,3.38813749]
[1744503039114,0.30776558,597.85,596.77,3.38813749]
[1744503039315,0.30776558,597.84,596.77,3.38813749]
[1744503039510,0.30776558,597.85,596.77,3.38813749]
[1744503039716,0.30776558,597.84,596.77,3.38813749]
[1744503039909,0.30776558,597.85,596.77,3.38813749]
[1744503040115,0.30776558,597.84,596.77,3.38813749]
[1744503040313,0.30776558,597.85,596.77,3.38813749]
[1744503040510,0.59917649,597.84,596.77,4.48013749]
[1744503040717,0.30776558,597.83,596.77,4.48013749]
[1744503041616,0.30776558,597.82,596.77,4.48013749]
[1744503041816,0.30776558,597.83,596.77,4.48013749]
[1744503042016,0.30776558,597.82,596.77,4.48013749]
[1744503042316,0.30776558,597.81,596.77,4.48013749]
[1744503042511,0.30776558,597.83,596.77,4.48013749]
[1744503043418,0.59917893,597.82,596.77,4.48013749]
[1744503043612,0.30776558,597.81,596.77,4.48013749]
[1744503043819,0.30776558,597.8,596.77,5.09313749]
[1744503044119,0.30776558,597.79,596.77,5.09313749]
[1744503044413,0.30776558,597.81,596.77,5.09313749]
[1744503044618,0.30776558,597.8,596.77,5.09313749]
[1744503044818,0.30776558,597.79,596.77,5.09313749]
[1744503045019,0.30776558,597.81,596.77,5.09313749]
[1744503045219,0.30776558,597.8,596.77,5.09313749]
[1744503045420,0.30776558,597.79,596.77,5.09313749]
[1744503045621,0.30776558,597.78,596.77,5.09313749]
[1744503045822,0.30776558,597.81,596.77,5.09313749]
[1744503046124,0.30776558,597.8,596.77,5.09313749]
[1744503046419,0.30776558,597.79,596.77,5.09313749]
[1744503046623,0.2914158,597.8,596.77,5.09313749]
[1744503046823,0.30776366,597.79,596.77,5.09313749]
[1744503049421,0.29141824,597.78,596.77,5.09313749]
[1744503049627,0.30776366,597.77,596.77,5.09313749]
[1744503051525,0.29141824,597.78,596.77,5.09313749]
[1744503051722,0.30775908,597.77,596.77,5.09313749]
[1744503052326,1.27119983,597.96,596.77,5.09313749]
[1744503052327,0.30775908,597.95,596.77,5.09313749]
[1744503052524,0.30775908,597.94,596.77,5.09313749]
[1744503052721,0.30775908,597.95,596.77,5.09313749]
[1744503053226,1.27119983,597.96,596.77,5.09313749]
[1744503053428,0.29139871,597.94,596.77,5.09313749]
[1744503053726,0.30775698,597.93,596.77,5.09313749]
[1744503057131,0.30775698,597.92,596.77,5.09313749]
[1744503057328,0.30775698,597.91,596.77,5.09313749]
[1744503057629,0.30775698,597.9,596.77,5.09313749]
[1744503057828,0.30775698,597.89,596.77,5.09313749]
[1744503058130,1.27119983,597.95,596.77,5.09313749]
[1744503058326,0.30775558,597.94,596.77,5.09313749]
[1744503058528,0.29140115,597.88,596.77,5.09313749]
[1744503058729,0.30775558,597.87,596.77,5.09313749]
[1744503059830,1.27119983,597.84,596.77,5.09313749]
[1744503060025,0.30775558,597.83,596.77,5.09313749]
[1744503062030,0.30775558,597.82,596.77,5.09313749]
[1744503062331,0.30775558,597.81,596.77,5.09313749]
[1744503062526,0.29141335,597.81,596.77,5.09313749]
[1744503062730,0.30775558,597.8,596.77,5.09313749]
[1744503064330,0.30775558,597.79,596.77,5.09313749]
[1744503064626,0.30775558,597.78,596.77,5.09313749]
[1744503064931,1.27119983,597.77,596.77,5.09313749]
[1744503065331,0.30775558,597.76,596.77,5.09313749]
[1744503067134,1.57895541,597.76,596.77,5.09313749]
[1744503067334,0.59917748,597.75,596.77,5.09313749]
[1744503067533,0.30775558,597.74,596.77,5.09313749]
[1744503070135,0.30775558,597.74,596.77,5.64813749]
[1744503070330,0.30775558,597.76,596.77,5.64813749]
[1744503070531,0.30775558,597.75,596.77,5.64813749]
[1744503070730,0.30775558,597.76,596.77,5.64813749]
[1744503070930,0.30775558,597.75,596.77,5.64813749]
[1744503071234,0.30775558,597.74,596.77,5.64813749]
[1744503071436,0.30775558,597.73,596.77,5.64813749]
[1744503073333,0.30775558,597.96,596.77,5.64813749]
[1744503073534,0.30775558,597.95,596.77,5.64813749]
[1744503073734,0.30775558,597.94,596.77,5.64813749]
[1744503073932,0.30775558,597.93,596.77,5.64813749]
[1744503074138,0.30775558,597.96,596.77,5.64813749]
[1744503074332,0.30775558,597.95,596.77,5.64813749]
[1744503074541,0.29143166,597.92,596.77,5.64813749]
[1744503074741,0.30775558,597.91,596.77,5.64813749]
[1744503075842,0.29143166,597.92,596.77,5.64813749]
[1744503076041,0.30785802,597.9,596.77,5.64813749]
[1744503076240,0.30785802,597.89,596.77,5.64813749]
[1744503076440,0.29143654,597.91,596.77,5.64813749]
[1744503076640,0.30785802,597.9,596.77,5.64813749]
[1744503077440,0.29143654,597.91,596.77,5.64813749]
[1744503077643,0.30785596,597.9,596.77,5.64813749]
[1744503079145,1.27119983,598.08,596.77,5.64813749]
[1744503079347,0.64226026,598.07,596.77,5.64813749]
[1744503079546,0.29144386,597.89,596.77,5.64813749]
[1744503079746,0.30785125,597.88,596.77,5.64813749]
[1744503080041,0.30785125,597.87,596.77,5.64813749]
[1744503080446,0.59927681,597.86,596.77,5.64813749]
[1744503080641,0.30785125,597.85,596.77,5.64813749]
[1744503082345,0.30785125,598.05,596.77,5.64813749]
[1744503082542,0.33442579,598.04,596.77,5.64813749]
[1744503082846,0.30784213,598.03,596.77,5.64813749]
[1744503083046,0.33443697,598.02,596.77,5.64813749]
[1744503083246,0.30784213,598.01,596.77,5.64813749]
[1744503083446,0.33444816,598.0,596.77,5.64813749]
[1744503083647,0.30784213,597.99,596.77,5.64813749]
[1744503083847,0.33445934,597.98,596.77,5.64813749]
[1744503084343,0.30784431,597.97,596.77,5.64813749]
[1744503084547,0.64231484,597.96,596.77,5.64813749]
[1744503084846,0.30784431,597.95,596.77,5.64813749]
[1744503085045,0.30784431,597.94,596.77,5.64813749]
[1744503085345,0.30784431,597.93,596.77,5.64813749]
[1744503085548,0.30784431,597.95,596.77,5.64813749]
[1744503086347,0.2914158,597.94,596.77,5.64813749]
[1744503086544,0.30784431,597.93,596.77,5.64813749]
[1744503088350,0.30784431,597.95,596.77,5.64813749]
[1744503089347,0.33447053,597.96,596.77,5.64813749]
[1744503089550,0.2914158,597.94,596.77,5.64813749]
[1744503089751,0.30781552,597.93,596.77,5.64813749]
[1744503091351,0.30781552,597.95,596.77,5.64813749]
[1744503091554,0.30781552,597.94,596.77,6.57713749]
[1744503091753,0.30781552,597.95,596.77,6.57713749]
[1744503091954,0.30781552,597.94,596.77,6.57713749]
[1744503092254,0.30781552,597.93,596.77,6.57713749]
[1744503092455,0.2914158,597.93,596.77,6.57713749]
[1744503092654,0.30781552,597.92,596.77,6.57713749]
[1744503094349,0.30781552,597.95,596.77,6.57713749]
[1744503095452,0.2914158,597.94,596.77,6.57713749]
[1744503095659,0.30781552,597.93,596.77,6.57713749]
[1744503095857,0.30781552,597.92,596.77,6.57713749]
[1744503096059,0.30781552,597.91,596.77,6.57713749]
[1744503096259,0.30781552,597.9,596.77,6.57713749]
[1744503096558,0.30781552,597.89,596.77,6.57713749]
[1744503096758,0.30781552,597.93,596.77,6.57713749]
[1744503097358,0.30781552,597.92,596.77,6.57713749]
[1744503097654,0.30776435,597.91,596.77,6.57713749]
[1744503097858,0.30776435,597.95,596.77,6.57713749]
[1744503098056,0.30776435,597.94,596.77,6.57713749]
[1744503098259,0.30776435,597.95,596.77,6.57713749]
[1744503098456,0.59915818,597.94,596.77,6.57713749]
[1744503098661,0.30776435,597.93,596.77,6.57713749]
[1744503099262,0.29139383,597.94,596.77,6.57713749]
[1744503099462,0.30776533,597.93,596.77,6.57713749]
[1744503100363,0.30776533,597.95,596.77,6.57713749]
[1744503101464,0.29139383,597.94,596.77,6.57713749]
[1744503101663,0.30776533,597.93,596.77,6.57713749]
[1744503103359,0.30776533,597.95,596.77,6.57713749]
[1744503103564,0.30776533,597.94,596.77,6.57713749]
[1744503103763,0.30776533,597.95,596.77,6.57713749]
[1744503104468,0.29139383,597.94,596.77,6.57713749]
[1744503104661,0.30776533,597.93,596.77,6.57713749]
[1744503106372,0.30776533,597.95,596.77,6.57713749]
[1744503106572,0.29138163,597.92,596.77,6.57713749]
[1744503106873,0.30776533,597.91,596.77,6.57713749]
[1744503109178,0.33447053,597.96,596.77,6.57713749]
[1744503109378,0.29139139,597.9,596.77,6.57713749]
[1744503109577,0.30775299,597.89,596.77,6.57713749]
[1744503112476,0.30775299,597.88,596.77,6.57713749]
[1744503112681,0.30775299,597.87,596.77,6.57713749]
[1744503112876,0.30775299,597.86,596.77,6.57713749]
[1744503113180,0.33447053,597.96,596.77,6.57713749]
[1744503113380,0.2914158,597.85,596.77,6.57713749]
[1744503113583,0.30779616,597.84,596.77,6.57713749]
[1744503114080,0.30779616,597.83,596.77,6.57713749]
[1744503114277,0.30779616,597.82,596.77,6.57713749]
[1744503114481,0.30779616,597.81,596.77,6.57713749]
[1744503114781,0.33447053,597.96,596.77,6.57713749]
[1744503114782,0.30779616,597.8,596.77,6.57713749]
[1744503114977,0.30779616,597.79,596.77,6.57713749]
[1744503115175,0.30779616,597.78,596.77,6.57713749]
[1744503115377,0.30779616,597.95,596.77,6.57713749]
[1744503115581,0.30779616,597.94,596.77,6.57713749]
[1744503115783,1.57899599,597.93,596.77,6.57713749]
[1744503115976,0.30779616,597.92,596.77,6.57713749]
[1744503116181,0.30779616,597.91,596.77,6.57713749]
[1744503116376,0.30779616,597.9,596.77,6.57713749]
[1744503116581,0.30779616,597.89,596.77,6.57713749]
[1744503116881,0.30779616,597.88,596.77,6.57713749]
[1744503117081,0.30779616,597.87,596.77,6.57713749]
[1744503117281,0.30779616,597.86,596.77,6.57713749]
[1744503117481,0.30779616,597.85,596.77,6.57713749]
[1744503117683,0.30779616,597.84,596.77,6.57713749]
[1744503117982,0.30779616,597.83,596.77,6.57713749]
[1744503118182,1.27119983,597.93,596.77,6.57713749]
[1744503118183,0.30779616,597.82,596.77,6.57713749]
[1744503118383,0.30779616,597.81,596.77,6.57713749]
[1744503118583,0.30779616,597.8,596.77,6.57713749]
[1744503118781,0.30779616,597.79,596.77,6.57713749]
[1744503118977,1.27119983,597.91,596.77,6.57713749]
[1744503119181,0.30779616,597.9,596.77,6.57713749]
[1744503119381,0.30779616,597.89,596.77,6.57713749]
[1744503119583,0.30779616,597.88,596.77,6.57713749]
[1744503119783,0.30779616,597.87,596.77,6.57713749]
[1744503119983,0.30779616,597.86,596.77,6.57713749]
[1744503120281,0.30779616,597.85,596.77,6.57713749]
[1744503120485,0.30779616,597.84,596.77,6.57713749]
[1744503120784,0.30779616,597.83,596.77,6.57713749]
[1744503120983,0.30779616,597.82,596.77,6.57713749]
[1744503121185,0.2914219,597.9,596.77,6.57713749]
[1744503121186,0.30779616,597.81,596.77,6.57713749]
[1744503121383,0.30779616,597.8,596.77,6.57713749]
[1744503121579,0.30779616,597.79,596.77,6.57713749]
[1744503121781,1.27119983,597.89,596.77,6.57713749]
[1744503121983,0.30779616,597.88,596.77,6.57713749]
[1744503122184,0.30779616,597.87,596.77,6.57713749]
[1744503122381,0.30779616,597.86,596.77,6.57713749]
[1744503122581,0.29142434,597.87,596.77,6.57713749]
[1744503122582,0.30779616,597.85,596.77,6.57713749]
[1744503122782,0.30779616,597.84,596.77,6.57713749]
[1744503122986,0.30779616,597.83,596.77,6.57713749]
[1744503123288,0.30779616,597.82,596.77,6.57713749]
[1744503123589,1.27119983,597.85,596.77,6.57713749]
[1744503123788,0.30783615,597.84,596.77,6.57713749]
[1744503124090,0.30783615,597.83,596.77,6.57713749]
[1744503124289,0.30783615,597.82,596.77,6.57713749]
[1744503124485,0.30783615,597.81,596.77,6.57713749]
[1744503124689,0.30783615,597.8,596.77,6.57713749]
[1744503124890,0.30783615,597.79,596.77,6.57713749]
[1744503125091,0.30783615,597.78,596.77,6.57713749]
[1744503125291,0.30783615,597.77,596.77,6.57713749]
[1744503125492,1.27119983,597.75,596.77,6.57713749]
[1744503125695,0.30783615,597.74,596.77,6.57713749]
[1744503125889,0.30783615,597.73,596.77,6.57713749]
[1744503126090,0.30783615,597.72,596.77,6.57713749]
[1744503126292,0.30783615,597.71,596.77,6.57713749]
[1744503126493,0.30783615,597.7,596.77,6.57713749]
[1744503126693,0.30783615,597.69,596.77,6.57713749]
[1744503126993,0.30783615,597.68,596.77,6.57713749]
[1744503127191,0.30783615,597.67,596.77,6.57713749]
[1744503127496,0.30783615,597.66,596.77,6.57713749]
[1744503133299,0.30783615,597.76,596.77,6.57713749]
[1744503133503,0.29147071,597.65,596.77,6.57713749]
[1744503133704,0.30783615,597.64,596.77,6.57713749]
[1744503133906,0.30783615,597.76,596.77,6.57713749]
[1744503134204,0.30783615,597.75,596.77,6.57713749]
[1744503134406,0.30783615,597.74,596.77,6.57713749]
[1744503134604,0.30783615,597.73,596.77,6.57713749]
[1744503134803,0.30783615,597.72,596.77,6.57713749]
[1744503135002,0.30783615,597.71,596.77,6.57713749]
[1744503135199,0.30783615,597.7,596.77,6.57713749]
[1744503135404,0.30783615,597.69,596.77,6.57713749]
[1744503135600,0.30783615,597.68,596.77,6.57713749]
[1744503135805,0.30783615,597.67,596.77,6.57713749]
[1744503135998,0.30783615,597.66,596.77,6.57713749]
[1744503136205,0.30783615,597.65,596.77,6.57713749]
[1744503136403,0.30783615,597.77,596.77,6.57713749]